bitfinex-derivatives/quotes_BTCF0:USTF0_20260106
["timestamp","ask_amount","ask_price","bid_price","bid_amount"]
[1767685718695,0.02377386,93296.0,93281.0,0.04349218]
[1767685718899,0.02377386,93295.0,93281.0,0.04349218]
[1767685719099,0.02377386,93294.0,93281.0,0.04349218]
[1767685719300,0.02377386,93293.0,93281.0,0.04349218]
[1767685719601,0.09116,93298.0,93281.0,0.04349218]
[1767685719798,0.0237733,93297.0,93284.0,0.04349218]
[1767685720103,0.0237733,93296.0,93284.0,0.04349218]
[1767685720292,0.0237733,93295.0,93284.0,0.04349218]
[1767685720492,0.0237733,93294.0,93284.0,0.04349218]
[1767685720693,0.01286566,93299.0,93284.0,0.04349218]
[1767685720899,0.02377256,93298.0,93284.0,0.04349218]
[1767685721101,0.02377256,93297.0,93283.0,0.09203797]
[1767685721305,0.02377256,93296.0,93283.0,0.09203797]
[1767685721494,0.01286566,93299.0,93283.0,0.09203797]
[1767685721495,0.02377256,93295.0,93283.0,0.09203797]
[1767685721694,0.02377256,93294.0,93283.0,0.09203797]
[1767685721895,0.01286566,93299.0,93283.0,0.09203797]
[1767685722194,0.02377258,93298.0,93283.0,0.09203797]
[1767685722393,0.02377258,93297.0,93283.0,0.09203797]
[1767685722600,0.01286566,93299.0,93283.0,0.09203797]
[1767685722601,0.02377258,93296.0,93283.0,0.09203797]
[1767685722802,0.02377258,93295.0,93283.0,0.13553015]
[1767685723002,0.02377258,93294.0,93283.0,0.13553015]
[1767685723189,0.00214366,93299.0,93287.0,0.04349218]
[1767685723389,0.0451949,93310.0,93287.0,0.04349218]
[1767685723390,0.09116,93306.0,93290.0,0.04349218]
[1767685723599,0.010721,93305.0,93290.0,0.04349218]
[1767685723913,0.09116,93306.0,93290.0,0.04349218]
[1767685724101,0.09116,93306.0,93287.0,0.13553015]
[1767685725005,0.09116,93306.0,93288.0,0.04349218]
[1767685725204,0.09116,93306.0,93285.0,0.010723]
[1767685725205,0.0451949,93305.0,93285.0,0.010723]
[1767685725501,0.010721,93304.0,93285.0,0.04349218]
[1767685725698,0.010722,93299.0,93285.0,0.04349218]
[1767685725905,0.010722,93297.0,93283.0,0.0867383]
[1767685726094,0.010722,93298.0,93278.0,0.04349218]
[1767685726295,0.0559169,93298.0,93278.0,0.04349218]
[1767685726496,0.0451949,93292.0,93272.0,0.09203797]
[1767685726709,0.0451949,93292.0,93270.0,0.10137253]
[1767685726710,0.0451949,93290.0,93270.0,0.10137253]
[1767685726897,0.0451949,93294.0,93273.0,0.13553015]
[1767685727202,0.010722,93295.0,93275.0,0.04349218]
[1767685727406,0.09597699,93297.0,93277.0,0.04349218]
[1767685728195,0.010722,93296.0,93277.0,0.04349218]
[1767685728398,0.010722,93292.0,93276.0,0.08588704]
[1767685728601,0.010722,93292.0,93274.0,0.09203797]
[1767685728799,0.010722,93295.0,93275.0,0.04349218]
[1767685729099,0.010722,93295.0,93276.0,0.04349218]
[1767685730797,0.010722,93293.0,93276.0,0.04349218]
[1767685732206,0.010722,93293.0,93275.0,0.08415528]
[1767685732402,0.010722,93293.0,93274.0,0.09203797]
[1767685732603,0.010722,93291.0,93276.0,0.15977556]
[1767685733005,0.010722,93291.0,93274.0,0.09203797]
[1767685733201,0.0559179,93283.0,93271.0,0.09116]
[1767685733607,0.09597699,93285.0,93273.0,0.16068015]
[1767685733807,0.09597699,93285.0,93272.0,0.16068015]
[1767685734001,0.010723,93282.0,93271.0,0.16060415]
[1767685734210,0.010723,93282.0,93265.0,0.15132564]
[1767685734403,0.010724,93280.0,93267.0,0.16060415]
[1767685734604,0.010723,93283.0,93266.0,0.16060415]
[1767685734814,0.010723,93283.0,93265.0,0.19481782]
[1767685735013,0.010723,93283.0,93269.0,0.00214435]
[1767685735199,0.09597699,93285.0,93269.0,0.00214435]
[1767685735404,0.010723,93286.0,93270.0,0.15995004]
[1767685735602,0.010723,93284.0,93270.0,0.15995004]
[1767685735800,0.14117189,93277.0,93269.0,3.9e-07]
[1767685735998,0.0451949,93277.0,93253.0,0.13553015]
[1767685736207,0.0451949,93277.0,93255.0,0.04349218]
[1767685736412,0.1363549,93276.0,93257.0,0.17170058]
[1767685736714,0.23233189,93276.0,93257.0,0.010726]
[1767685737013,0.23233189,93276.0,93258.0,0.16136232]
[1767685737809,0.23233189,93276.0,93256.0,0.2048545]
[1767685738110,0.09116,93275.0,93256.0,0.04349218]
[1767685738507,0.09116,93275.0,93257.0,0.16125043]
[1767685739212,0.09116,93275.0,93257.0,0.20474261]
[1767685739414,0.14117189,93276.0,93257.0,0.20474261]
[1767685739610,0.18713699,93276.0,93257.0,0.04349218]
[1767685739805,0.09597699,93276.0,93258.0,0.20451636]
[1767685740007,0.18713699,93276.0,93258.0,0.20451636]
[1767685741004,0.19786099,93276.0,93258.0,0.20451636]
[1767685741208,0.010724,93274.0,93258.0,0.16102418]
[1767685741410,0.010725,93268.0,93251.0,0.09640404]
[1767685741810,0.010725,93266.0,93251.0,0.09640404]
[1767685742010,0.010725,93266.0,93246.0,0.13788483]
[1767685742412,0.010725,93266.0,93250.0,0.16077166]
[1767685742709,0.010725,93266.0,93249.0,0.16077166]
[1767685742710,0.04332139,93267.0,93246.0,0.13788483]
[1767685742908,0.04332139,93264.0,93242.0,0.10077973]
[1767685743109,0.010726,93259.0,93242.0,0.10077973]
[1767685743312,0.04332139,93255.0,93241.0,0.09116]
[1767685743613,0.010727,93254.0,93235.0,0.09640404]
[1767685743808,0.04332139,93255.0,93235.0,0.09640404]
[1767685744014,0.1034432,93256.0,93240.0,0.1607467]
[1767685744514,0.04332139,93259.0,93240.0,0.1607467]
[1767685744515,0.05404739,93259.0,93240.0,0.1607467]
[1767685744915,0.010726,93259.0,93240.0,0.20222749]
[1767685745217,0.0927172,93261.0,93242.0,0.04148079]
[1767685746308,0.010726,93260.0,93242.0,0.04148079]
[1767685748115,0.010725,93265.0,93244.0,0.13788483]
[1767685748316,0.010726,93263.0,93245.0,0.04148079]
[1767685748816,0.09116,93264.0,93245.0,0.04148079]
[1767685749016,0.101886,93264.0,93245.0,0.04148079]
[1767685749704,0.04332139,93271.0,93248.0,0.13788483]
[1767685749911,0.010725,93268.0,93249.0,0.13788483]
[1767685750110,0.010725,93268.0,93250.0,0.04148079]
[1767685750309,0.010725,93268.0,93252.0,0.04148079]
[1767685750512,0.09116,93267.0,93254.0,0.04148079]
[1767685750703,0.010725,93266.0,93254.0,0.04148079]
[1767685751914,0.09116,93267.0,93254.0,0.04148079]
[1767685754320,0.010725,93270.0,93254.0,0.04148079]
[1767685754520,0.09116,93269.0,93254.0,0.04148079]
[1767685754716,0.010725,93268.0,93253.0,0.09640404]
[1767685755017,0.010725,93268.0,93250.0,0.04148079]
[1767685755215,0.13448139,93269.0,93250.0,0.04148079]
[1767685755520,0.010725,93266.0,93250.0,0.04148079]
[1767685758229,0.010723,93290.0,93261.0,0.04148079]
[1767685758525,0.1034422,93273.0,93253.0,0.04148079]
[1767685758717,0.0927172,93272.0,93253.0,0.04148079]
[1767685759027,0.0927172,93272.0,93255.0,0.04148079]
[1767685759213,0.13603859,93277.0,93255.0,0.04148079]
[1767685759718,0.0927172,93277.0,93258.0,0.05220679]
[1767685760024,0.0927172,93277.0,93260.0,0.05220679]
[1767685761526,0.0927172,93277.0,93260.0,0.04148079]
[1767685761527,0.010724,93275.0,93260.0,0.04148079]
[1767685762817,0.010724,93275.0,93256.0,0.04148079]
[1767685763517,0.0927172,93277.0,93256.0,0.04148079]
[1767685763719,0.0927172,93277.0,93258.0,0.04148079]
[1767685766027,0.1034412,93277.0,93258.0,0.04148079]
[1767685766229,0.010724,93275.0,93258.0,0.04148079]
[1767685766925,0.0927172,93277.0,93258.0,0.04148079]
[1767685768529,0.0927172,93277.0,93259.0,0.04148079]
[1767685774939,0.0927172,93277.0,93259.0,0.05220679]
[1767685776632,0.010724,93276.0,93259.0,0.04148079]
[1767685777337,0.0927172,93277.0,93260.0,0.03725693]
[1767685777535,0.0927172,93277.0,93261.0,0.010726]
[1767685778136,0.0927172,93277.0,93261.0,0.04798293]
[1767685779239,0.0927172,93277.0,93261.0,0.03725693]
[1767685780838,0.010724,93276.0,93261.0,0.03725693]
[1767685781548,0.10626436,93273.0,93255.0,0.05905411]
[1767685781839,0.09553936,93273.0,93255.0,0.03725693]
[1767685782040,0.10626436,93273.0,93255.0,0.03725693]
[1767685784036,0.09553936,93273.0,93255.0,0.03725693]
[1767685785042,0.03701387,93278.0,93259.0,0.03725693]
[1767685785236,0.010721,93300.0,93268.0,0.03725693]
[1767685785237,0.13255323,93289.0,93268.0,0.03725693]
[1767685785542,0.010722,93292.0,93274.0,0.03725693]
[1767685786327,0.03701387,93294.0,93274.0,0.03725693]
[1767685786529,0.03701387,93294.0,93280.0,0.09936607]
[1767685786742,0.03701387,93294.0,93274.0,0.04798093]
[1767685786743,0.010722,93292.0,93274.0,0.03725693]
[1767685787041,0.010722,93292.0,93280.0,0.09936607]
[1767685788244,0.03701387,93294.0,93280.0,0.09936607]
[1767685788937,0.010722,93293.0,93280.0,0.09936607]
[1767685789137,0.010722,93293.0,93272.0,0.09748054]
[1767685789138,0.010722,93291.0,93272.0,0.09748054]
[1767685789338,0.04773587,93291.0,93272.0,0.09748054]
[1767685789531,0.04773587,93291.0,93275.0,0.16134868]
[1767685789735,0.04773587,93291.0,93273.0,0.16134868]
[1767685789946,0.04773587,93291.0,93272.0,0.09748054]
[1767685790243,0.03701387,93288.0,93273.0,0.16102048]
[1767685790444,0.03701387,93287.0,93273.0,0.16102048]
[1767685790743,0.03701387,93285.0,93270.0,0.16102048]
[1767685791042,0.09553936,93286.0,93269.0,0.03725693]
[1767685791343,0.09553936,93286.0,93270.0,0.25946059]
[1767685792942,0.010723,93285.0,93270.0,0.16009452]
[1767685793248,0.09553936,93286.0,93270.0,0.25946059]
[1767685793839,0.03701387,93275.0,93253.0,0.13473747]
[1767685794044,0.03701387,93275.0,93260.0,0.09936607]
[1767685794237,0.03701387,93275.0,93266.0,0.16176376]
[1767685794438,0.010724,93274.0,93256.0,0.03725693]
[1767685794844,0.04773887,93266.0,93245.0,0.132428]
[1767685795042,0.09936607,93260.0,93247.0,0.0596025]
[1767685795239,0.13255323,93263.0,93247.0,0.0596025]
[1767685795437,0.010726,93261.0,93247.0,0.0596025]
[1767685795837,0.010726,93261.0,93243.0,0.03725693]
[1767685796138,0.03535335,93259.0,93240.0,0.09936607]
[1767685796337,0.03535335,93259.0,93240.0,0.15829462]
[1767685796548,0.03535335,93259.0,93241.0,0.16141569]
[1767685797346,0.03535335,93258.0,93241.0,0.16141569]
[1767685797546,0.10200806,93259.0,93241.0,0.16141569]
[1767685798249,0.09128206,93259.0,93241.0,0.1970353]
[1767685799149,0.03535335,93255.0,93241.0,0.16141569]
[1767685799446,0.09128206,93256.0,93240.0,0.25952864]
[1767685799846,0.04607935,93259.0,93240.0,0.25952864]
[1767685800948,0.03535335,93255.0,93240.0,0.16016257]
[1767685801144,0.09128206,93256.0,93240.0,0.25952864]
[1767685801339,0.010726,93257.0,93241.0,0.03677299]
[1767685801744,0.010726,93260.0,93242.0,0.19839749]
[1767685801949,0.010726,93261.0,93250.0,0.09936607]
[1767685802252,0.010726,93261.0,93247.0,0.03677299]
[1767685802442,0.010726,93259.0,93243.0,0.03677299]
[1767685803345,0.010726,93259.0,93240.0,0.19562336]
[1767685803543,0.010726,93259.0,93240.0,0.23239635]
[1767685803743,0.010726,93259.0,93241.0,0.16031457]
[1767685805648,0.010726,93259.0,93241.0,0.19708756]
[1767685807449,0.09936607,93260.0,93241.0,0.19708756]
[1767685807645,0.03542891,93263.0,93243.0,0.03677299]
[1767685807845,0.04615491,93263.0,93243.0,0.03677299]
[1767685808852,0.04615491,93263.0,93243.0,0.13303028]
[1767685809153,0.04615491,93263.0,93244.0,0.03677299]
[1767685809450,0.010726,93263.0,93245.0,0.03677299]
[1767685811152,0.09445149,93264.0,93245.0,0.03677299]
[1767685811344,0.10517749,93264.0,93245.0,0.03677299]
[1767685813952,0.010726,93262.0,93244.0,0.09625729]
[1767685814454,0.09936607,93260.0,93244.0,0.09625729]
[1767685815556,0.11009207,93260.0,93244.0,0.09625729]
[1767685816651,0.010726,93258.0,93242.0,0.03677299]
[1767685816858,0.010726,93258.0,93240.0,0.13613906]
[1767685817157,0.010726,93258.0,93240.0,0.29662559]
[1767685817550,0.010726,93258.0,93241.0,0.03677299]
[1767685817750,0.13479498,93260.0,93241.0,0.03677299]
[1767685817952,0.13479498,93260.0,93242.0,0.20798752]
[1767685818147,0.09936607,93260.0,93243.0,0.03677299]
[1767685820154,0.11009207,93260.0,93243.0,0.03677299]
[1767685820348,0.14552098,93260.0,93240.0,0.03677299]
[1767685820553,0.010727,93254.0,93240.0,0.03677299]
[1767685820754,0.010727,93254.0,93240.0,0.19687209]
[1767685820955,0.010726,93257.0,93240.0,0.19687209]
[1767685822556,0.010727,93255.0,93240.0,0.1600991]
[1767685822960,0.010726,93258.0,93240.0,0.1600991]
[1767685823360,0.09936607,93250.0,93240.0,0.1600991]
[1767685823561,0.010727,93252.0,93240.0,0.1600991]
[1767685824462,0.09445149,93254.0,93240.0,0.1600991]
[1767685824762,0.010727,93253.0,93240.0,0.1600991]
[1767685825558,0.09445149,93254.0,93240.0,0.1600991]
[1767685825559,0.010727,93251.0,93240.0,0.1600991]
[1767685825761,0.09445149,93254.0,93239.0,0.00214504]
[1767685825762,0.010727,93249.0,93239.0,0.00214504]
[1767685826260,0.03542891,93244.0,93226.0,0.09625729]
[1767685826661,0.09445149,93245.0,93227.0,0.03677299]
[1767685826968,0.010728,93244.0,93227.0,0.03677299]
[1767685827265,0.09445149,93245.0,93223.0,0.03677299]
[1767685827266,0.09936607,93240.0,93223.0,0.03677299]
[1767685827567,0.11009407,93240.0,93223.0,0.19708101]
[1767685827764,0.010729,93238.0,93223.0,0.16030802]
[1767685827971,0.010729,93238.0,93221.0,0.09625729]
[1767685828167,0.010729,93238.0,93224.0,0.16154612]
[1767685828366,0.010729,93238.0,93221.0,0.13303028]
[1767685828669,0.010729,93238.0,93223.0,0.16154612]
[1767685828855,0.11009407,93240.0,93223.0,0.16154612]
[1767685829059,0.11009407,93240.0,93222.0,0.03677299]
[1767685829371,0.11009407,93240.0,93224.0,0.16028378]
[1767685829576,0.11009407,93240.0,93223.0,0.19705677]
[1767685829769,0.11009407,93240.0,93223.0,0.03677299]
[1767685830173,0.010728,93240.0,93224.0,0.15997961]
[1767685830357,0.11009407,93240.0,93224.0,0.15997961]
[1767685830665,0.03542891,93239.0,93224.0,0.15997961]
[1767685830869,0.03542891,93239.0,93219.0,0.03677299]
[1767685830870,0.010729,93234.0,93219.0,0.03677299]
[1767685831262,0.010729,93234.0,93219.0,0.09510705]
[1767685831463,0.010729,93234.0,93220.0,0.03313273]
[1767685832368,0.010729,93232.0,93220.0,0.03313273]
[1767685832670,0.010729,93232.0,93216.0,0.27130687]
[1767685832864,0.03334621,93235.0,93216.0,0.27130687]
[1767685833072,0.03334621,93235.0,93217.0,0.16184404]
[1767685833371,0.010729,93231.0,93217.0,0.16184404]
[1767685833962,0.03334621,93235.0,93217.0,0.16184404]
[1767685834161,0.010728,93241.0,93217.0,0.16184404]
[1767685834162,0.09936607,93230.0,93217.0,0.16184404]
[1767685834368,0.01073,93224.0,93217.0,0.16184404]
[1767685835074,0.01073,93227.0,93217.0,0.16184404]
[1767685836167,0.03334621,93232.0,93217.0,0.16184404]
[1767685836569,0.01073,93227.0,93217.0,0.16184404]
[1767685838480,0.01073,93225.0,93217.0,0.16184404]
[1767685838979,0.01073,93223.0,93217.0,0.16184404]
[1767685839166,0.010731,93221.0,93208.0,0.03313273]
[1767685839567,0.010731,93221.0,93214.0,0.16122156]
[1767685839767,0.010731,93221.0,93210.0,0.16122156]
[1767685839975,0.010731,93221.0,93208.0,0.03313273]
[1767685840168,0.010731,93221.0,93210.0,0.1616687]
[1767685840975,0.010731,93219.0,93210.0,0.1616687]
[1767685841372,0.09876451,93235.0,93213.0,0.09295225]
[1767685841577,0.010728,93240.0,93210.0,0.1616687]
[1767685841578,0.03334621,93240.0,93219.0,0.03313273]
[1767685841778,0.13271228,93240.0,93220.0,0.1324988]
[1767685841974,0.03334621,93239.0,93220.0,0.03313273]
[1767685842174,0.01073,93229.0,93220.0,0.03313273]
[1767685842377,0.03334621,93234.0,93212.0,0.12608498]
[1767685842682,0.01073,93225.0,93214.0,0.03313273]
[1767685843376,0.09936607,93230.0,93214.0,0.03313273]
[1767685843377,0.01073,93227.0,93214.0,0.03313273]
[1767685843577,0.01073,93228.0,93214.0,0.03313273]
[1767685843782,0.01073,93228.0,93215.0,0.03313273]
[1767685844080,0.09936607,93230.0,93210.0,0.09936607]
[1767685844270,0.01073,93226.0,93210.0,0.09936607]
[1767685844585,0.01073,93226.0,93211.0,0.16050154]
[1767685844773,0.01073,93226.0,93211.0,0.19363427]
[1767685844976,0.01073,93226.0,93212.0,0.03313273]
[1767685845480,0.01073,93226.0,93214.0,0.03313273]
[1767685845682,0.03334621,93234.0,93214.0,0.03313273]
[1767685845979,0.01073,93227.0,93214.0,0.03313273]
[1767685846384,0.09936607,93230.0,93213.0,0.09295225]
[1767685846586,0.13211072,93229.0,93207.0,0.12608498]
[1767685846778,0.03334621,93227.0,93214.0,0.16041615]
[1767685846978,0.03334621,93227.0,93211.0,0.16041615]
[1767685847180,0.03334621,93227.0,93207.0,0.12608498]
[1767685847482,0.09936607,93220.0,93212.0,0.16079524]
[1767685847673,0.010731,93218.0,93211.0,0.16079524]
[1767685847875,0.010731,93218.0,93207.0,0.12608498]
[1767685848280,0.010731,93216.0,93210.0,0.1613328]
[1767685848574,0.010731,93219.0,93210.0,0.1613328]
[1767685849279,0.010731,93217.0,93210.0,0.1613328]
[1767685849881,0.010731,93215.0,93210.0,0.1613328]
[1767685850385,0.010732,93211.0,93198.0,0.09295225]
[1767685850775,0.010732,93211.0,93205.0,0.16120466]
[1767685851682,0.010732,93210.0,93205.0,6.6e-07]
[1767685851883,0.010732,93208.0,93205.0,6.6e-07]
[1767685852187,0.010732,93208.0,93199.0,0.03324708]
[1767685852379,0.010732,93208.0,93206.0,0.1609988]
[1767685852581,0.010732,93208.0,93205.0,0.1609988]
[1767685852889,0.010732,93208.0,93199.0,0.03324708]
[1767685853181,0.010732,93208.0,93206.0,2.2e-07]
[1767685853385,0.010732,93208.0,93201.0,0.16193722]
[1767685853571,0.03334621,93219.0,93200.0,0.16193722]
[1767685853775,0.03334621,93219.0,93199.0,0.03324708]
[1767685853982,0.010732,93207.0,93200.0,0.16193722]
[1767685854186,0.010732,93205.0,93200.0,0.16193722]
[1767685855277,0.03334621,93214.0,93200.0,0.16193722]
[1767685855477,0.03334621,93212.0,93200.0,0.16193722]
[1767685855980,0.03334621,93216.0,93200.0,0.16193722]
[1767685856182,0.03334621,93225.0,93207.0,0.09295225]
[1767685856379,0.010731,93215.0,93207.0,0.12608498]
[1767685856582,0.03334621,93218.0,93199.0,0.00011435]
[1767685856883,0.010732,93210.0,93200.0,0.16140675]
[1767685857183,0.4,93223.0,93200.0,0.16140675]
[1767685857184,0.010731,93213.0,93201.0,0.03313273]
[1767685857382,0.010732,93211.0,93201.0,0.03313273]
[1767685857582,0.010732,93211.0,93202.0,0.16165326]
[1767685857789,0.010732,93209.0,93202.0,0.16165326]
[1767685857983,0.0388374,93216.0,93201.0,0.16165326]
[1767685858286,0.010732,93208.0,93199.0,0.00011435]
[1767685858488,0.010732,93208.0,93202.0,0.1613668]
[1767685858785,0.010732,93208.0,93201.0,0.1613668]
[1767685858998,0.010732,93208.0,93199.0,0.00011435]
[1767685859192,0.010732,93211.0,93202.0,0.160091]
[1767685859486,0.010732,93211.0,93201.0,0.160091]
[1767685859786,0.09793393,93218.0,93199.0,0.00011435]
[1767685859982,0.13677133,93218.0,93202.0,0.160091]
[1767685860284,0.010732,93208.0,93201.0,0.160091]
[1767685860485,0.010732,93208.0,93199.0,0.00011435]
[1767685860685,0.010732,93208.0,93202.0,0.1619679]
[1767685860890,0.010732,93208.0,93201.0,0.1619679]
[1767685861196,0.010732,93208.0,93199.0,0.00011435]
[1767685861487,0.03652977,93215.0,93201.0,0.1603922]
[1767685861686,0.03652977,93213.0,93200.0,0.1603922]
[1767685861889,0.03652977,93213.0,93199.0,0.00011435]
[1767685862077,0.03652977,93213.0,93200.0,0.1603922]
[1767685862486,0.09433064,93214.0,93200.0,0.1603922]
[1767685862681,0.03652977,93217.0,93200.0,0.1603922]
[1767685862886,0.010732,93210.0,93200.0,0.1603922]
[1767685863389,0.010732,93208.0,93200.0,0.1603922]
[1767685863585,0.010732,93211.0,93200.0,0.1603922]
[1767685863785,0.13086041,93217.0,93200.0,0.1603922]
[1767685863786,0.010732,93209.0,93200.0,0.1603922]
[1767685864191,0.010732,93207.0,93200.0,0.1603922]
[1767685865095,0.03652977,93216.0,93200.0,0.1603922]
[1767685865289,0.010732,93212.0,93200.0,0.1603922]
[1767685865488,0.03652977,93220.0,93200.0,0.19886147]
[1767685865694,0.02340667,93219.0,93201.0,0.03846927]
[1767685865995,0.010731,93213.0,93202.0,0.1610452]
[1767685866193,0.03652977,93220.0,93202.0,0.1610452]
[1767685866394,0.02340677,93219.0,93202.0,0.1610452]
[1767685866594,0.03652977,93220.0,93202.0,0.1610452]
[1767685866783,0.02340677,93219.0,93202.0,0.1610452]
[1767685866984,0.010732,93212.0,93202.0,0.1610452]
[1767685867385,0.01073,93223.0,93208.0,0.03846927]
[1767685867580,0.02340721,93222.0,93203.0,0.03846927]
[1767685867785,0.02340721,93221.0,93204.0,0.03846927]
[1767685867997,0.02340721,93220.0,93204.0,0.03846927]
[1767685868295,0.02340721,93219.0,93203.0,0.09930602]
[1767685868486,0.010732,93211.0,93203.0,0.09930602]
[1767685868681,0.010732,93211.0,93200.0,0.03846927]
[1767685868895,0.03652977,93220.0,93200.0,0.03846927]
[1767685868896,0.010732,93207.0,93200.0,0.03846927]
[1767685869195,0.010732,93210.0,93201.0,0.16118172]
[1767685869398,0.010731,93213.0,93201.0,0.19965099]
[1767685869598,0.010732,93211.0,93202.0,0.03846927]
[1767685869783,0.010732,93211.0,93203.0,0.03846927]
[1767685870196,0.010732,93211.0,93202.0,0.09930602]
[1767685871496,0.010732,93209.0,93200.0,0.03846927]
[1767685871695,0.03652977,93219.0,93200.0,0.03846927]
[1767685871894,0.010732,93207.0,93201.0,0.16050652]
[1767685872088,0.010732,93207.0,93201.0,0.19897579]
[1767685872289,0.03652977,93220.0,93201.0,0.19897579]
[1767685872490,0.010731,93216.0,93201.0,0.03846927]
[1767685872689,0.010731,93216.0,93202.0,0.16164605]
[1767685873086,0.010732,93209.0,93202.0,0.16164605]
[1767685874094,0.03652977,93220.0,93202.0,0.26095207]
[1767685874598,0.010732,93207.0,93202.0,0.16164605]
[1767685874807,0.010732,93205.0,93202.0,5e-08]
[1767685875197,0.010733,93203.0,93199.0,0.00011435]
[1767685875705,0.010731,93214.0,93200.0,0.16053906]
[1767685875904,0.010732,93204.0,93200.0,0.16053906]
[1767685876105,0.010731,93214.0,93200.0,0.16053906]
[1767685877004,0.010733,93202.0,93199.0,4.1e-07]
[1767685877198,0.010733,93202.0,93199.0,1.9e-07]
[1767685877401,0.010733,93202.0,93200.0,6.2e-07]
[1767685878401,0.00011416,93201.0,93200.0,6.2e-07]
[1767685879101,0.010733,93200.0,93199.0,1.9e-07]
[1767685879403,0.010734,93194.0,93181.0,0.03846927]
[1767685879796,0.010734,93194.0,93188.0,0.16077732]
[1767685879998,0.010734,93194.0,93182.0,0.16077732]
[1767685880209,0.010732,93208.0,93181.0,0.13777529]
[1767685880509,0.02383611,93207.0,93187.0,0.16055537]
[1767685880697,0.010732,93207.0,93182.0,0.29833066]
[1767685880899,0.02383618,93206.0,93188.0,0.16055537]
[1767685881101,0.010733,93195.0,93188.0,0.16055537]
[1767685881409,0.010734,93190.0,93182.0,0.13777529]
[1767685881704,0.010734,93191.0,93183.0,0.1615702]
[1767685881908,0.010734,93187.0,93176.0,0.09930602]
[1767685882106,0.010734,93187.0,93171.0,0.03846927]
[1767685882493,0.03652977,93192.0,93179.0,4.2e-07]
[1767685882798,0.010735,93186.0,93179.0,4.2e-07]
[1767685883006,0.03652977,93194.0,93179.0,4.2e-07]
[1767685883196,0.010734,93187.0,93179.0,4.2e-07]
[1767685884693,0.13086041,93186.0,93179.0,4.2e-07]
[1767685884895,0.8573695,93270.0,93171.0,0.13777529]
[1767685884896,0.13086041,93204.0,93171.0,0.13777529]
[1767685885095,0.02356973,93203.0,93184.0,0.03846927]
[1767685885296,0.010732,93212.0,93195.0,0.03846929]
[1767685885501,0.010732,93204.0,93181.0,0.03846927]
[1767685885695,0.09433064,93216.0,93185.0,0.03846927]
[1767685885900,0.03430153,93215.0,93188.0,0.03846927]
[1767685886202,0.02357053,93214.0,93192.0,0.03846927]
[1767685886403,0.02357053,93214.0,93175.0,0.010736]
[1767685886404,0.09433064,93237.0,93209.0,0.03846927]
[1767685886608,0.09433064,93243.0,93209.0,0.03846927]
[1767685886999,0.010729,93237.0,93211.0,0.03846927]
[1767685887209,0.010729,93234.0,93211.0,0.03846927]
[1767685887409,0.010729,93234.0,93217.0,0.03846927]
[1767685887607,0.010726,93257.0,93212.0,0.03846927]
[1767685887608,0.01073,93228.0,93212.0,0.03846927]
[1767685887811,0.01073,93228.0,93213.0,0.13777529]
[1767685888104,0.01073,93228.0,93214.0,0.03846927]
[1767685888905,0.010731,93217.0,93194.0,0.09930602]
[1767685889496,0.010729,93236.0,93196.0,0.09930602]
[1767685889497,0.010731,93221.0,93196.0,0.09930602]
[1767685889701,0.01073,93225.0,93196.0,0.09930602]
[1767685890204,0.01073,93225.0,93198.0,0.09930602]
[1767685890515,0.01073,93225.0,93199.0,0.16172793]
[1767685890816,0.01073,93225.0,93200.0,0.09930602]
[1767685891110,0.01073,93225.0,93212.0,0.14065259]
[1767685891802,0.01073,93225.0,93212.0,0.09349631]
[1767685892406,0.01073,93229.0,93212.0,0.09349631]
[1767685893005,0.01073,93226.0,93212.0,0.09349631]
[1767685896012,0.01073,93226.0,93192.0,0.05783423]
[1767685896013,0.010729,93230.0,93217.0,0.04715628]
[1767685896215,0.010729,93230.0,93217.0,0.14065259]
[1767685896602,0.01073,93227.0,93217.0,0.14065259]
[1767685897214,0.01073,93227.0,93217.0,0.13850686]
[1767685897715,0.01073,93227.0,93217.0,0.09349631]
[1767685898104,0.01073,93227.0,93202.0,0.09349631]
[1767685898514,0.010729,93231.0,93205.0,0.09349631]
[1767685898701,0.010729,93231.0,93207.0,0.09349631]
[1767685899216,0.00214504,93239.0,93223.0,0.09349631]
[1767685899413,0.010728,93247.0,93228.0,0.14065259]
[1767685899609,0.09353063,93251.0,93204.0,0.010732]
[1767685899610,0.010727,93251.0,93234.0,0.14065259]
[1767685899918,0.09353063,93257.0,93237.0,0.04715628]
[1767685900214,0.010727,93253.0,93240.0,0.14065259]
[1767685900410,0.09353063,93263.0,93241.0,0.14065259]
[1767685900808,0.010726,93262.0,93245.0,0.04715628]
[1767685901124,0.010726,93262.0,93245.0,0.14065259]
[1767685901423,0.010726,93262.0,93246.0,0.14065259]
[1767685901915,0.010725,93265.0,93249.0,0.14065259]
[1767685902215,0.00214435,93269.0,93254.0,0.14065259]
[1767685902421,0.00214435,93269.0,93256.0,0.14065259]
[1767685902717,0.00214435,93269.0,93257.0,0.14065259]
[1767685903306,0.00214366,93299.0,93260.0,0.14065259]
[1767685903307,0.010724,93278.0,93260.0,0.14065259]
[1767685903516,0.010724,93278.0,93265.0,0.14065259]
[1767685903717,0.010725,93266.0,93244.0,0.16178137]
[1767685903915,0.09353063,93273.0,93235.0,0.16178137]
[1767685904110,0.010726,93261.0,93243.0,0.16178137]
[1767685904319,0.09353063,93264.0,93245.0,0.16178137]
[1767685904514,0.09353063,93264.0,93240.0,0.06046828]
[1767685904515,0.010726,93259.0,93240.0,0.06046828]
[1767685904818,0.010726,93259.0,93235.0,0.010729]
[1767685905013,0.010726,93263.0,93235.0,0.010729]
[1767685905219,0.09353063,93264.0,93235.0,0.010729]
[1767685905220,0.010726,93260.0,93236.0,0.16107709]
[1767685905806,0.010726,93260.0,93241.0,0.03636461]
[1767685906004,0.010726,93260.0,93242.0,0.03636461]
[1767685906517,0.010726,93263.0,93245.0,0.03636461]
[1767685907522,0.04802006,93275.0,93252.0,0.0358541]
[1767685907714,0.09353063,93269.0,93246.0,0.0358541]
[1767685908419,0.010726,93263.0,93247.0,0.03553234]
[1767685909012,0.010726,93261.0,93247.0,0.03553234]
[1767685909210,0.010726,93261.0,93246.0,0.09349631]
[1767685909211,0.09353063,93267.0,93246.0,0.09349631]
[1767685909616,0.010726,93262.0,93246.0,0.09349631]
[1767685910719,0.010726,93262.0,93246.0,0.12801935]
[1767685911122,0.09353063,93274.0,93253.0,0.03401865]
[1767685911304,0.010724,93274.0,93253.0,0.09349631]
[1767685911510,0.010726,93261.0,93247.0,0.09349631]
[1767685912011,0.010726,93259.0,93247.0,0.09349631]
[1767685912421,0.010726,93259.0,93247.0,0.12724177]
[1767685912719,0.010726,93257.0,93243.0,0.03374546]
[1767685913022,0.010726,93257.0,93245.0,0.03324366]
[1767685913322,0.010726,93261.0,93245.0,0.03324366]